fUSD/lending_fUSD_20260121
["ID","MTS","AMOUNT","RATE_DAILY","PERIOD"]
[402930579,1768991440323,-300.0,0.00017999,2]
[402930580,1768991440332,-666.0,0.00017999,2]
[402930581,1768991440341,-1236401.80357119,0.00018,2]
[402930582,1768991440355,-988.23777312,0.00018,2]
[402930583,1768991440366,-354373.0680992,0.00018,2]
[402930584,1768991440377,-1294.81404362,0.00018,2]
[402930585,1768991440388,-7769.37753702,0.00018,2]
[402930586,1768991440631,-13156.62256202,0.00018,2]
[402930587,1768991440643,-465.74054416,0.00018,2]
[402930588,1768991440655,-2824.1941683,0.00018,2]
[402930589,1768991440667,-1404.44569842,0.00018,2]
[402930591,1768991440678,-3464.4454591,0.00018,2]
[402930593,1768991440689,-5218.36329611,0.00018,2]
[402930594,1768991440700,-1902.07,0.00018,2]
[402930595,1768991440711,-2860.95238278,0.00018,2]
[402930613,1768991443078,-468.72833472,0.00018,2]
[402930615,1768991443090,-4593.71028193,0.00018,2]
[402930616,1768991443292,-911.29083245,0.00018,2]
[402930617,1768991443348,-1130.40073013,0.00018,2]
[402930618,1768991443420,-469.06607036,0.00018,2]
[402930619,1768991443431,-6101.44267302,0.00018,2]
[402930620,1768991443442,-10131.29022471,0.00018,2]
[402930621,1768991443453,-628.28861067,0.00018,2]
[402930622,1768991443465,-289.78000002,0.00018,2]
[402930623,1768991443476,-23098.19524539,0.00018,2]
[402930624,1768991443488,-302.05042645,0.00018,2]
[402930625,1768991443499,-662.76,0.00018,2]
[402930633,1768991446049,-1000.0,0.0001744,2]
[402930634,1768991446059,-22369.726536,0.00018,2]
[402930635,1768991446071,-1585.57444177,0.00018,2]
[402930636,1768991446082,-633.850205,0.00018,2]
[402930637,1768991446093,-2505.35903128,0.00018,2]
[402930638,1768991446104,-15796.29031247,0.00018,2]
[402930639,1768991446184,-4095.31242003,0.00018,2]
[402930640,1768991446196,-546.15709375,0.00018,2]
[402930641,1768991446271,-1010.1,0.00018,2]
[402930642,1768991446329,-1907.42836594,0.00018,2]
[402930643,1768991446340,-2840.0,0.00018,2]
[402930676,1768991556495,500.0,0.00016371,2]
[402930681,1768991909979,3274.283925,0.00016411,2]
[402930682,1768992007531,258.70498215,0.00016394,5]
[402930683,1768992008488,1000.0,0.00015986,2]
[402930684,1768992117734,1240.92,0.00015984,2]
[402930685,1768992117929,1240.92,0.00016026,2]
[402930686,1768992118161,1240.92,0.00016068,2]
[402930687,1768992118352,1240.92,0.0001611,2]
[402930688,1768992118542,1240.92,0.00016152,2]
[402930689,1768992118744,1240.92,0.00016194,2]
[402930690,1768992119156,1240.92,0.00016236,2]
[402930691,1768992119364,54.86501785,0.00016278,2]
[402930692,1768992119385,1186.05498215,0.00016278,2]
[402930693,1768992119746,1240.92,0.00016321,2]
[402930694,1768992119978,1240.92,0.00016363,2]
[402930695,1768992120181,1240.92,0.00016405,2]
[402930701,1768992367540,211.1622962,0.0001634,2]
[402930702,1768992398564,1836.05,0.0001574,2]
[402930704,1768992543668,312.73111345,0.00016245,2]
[402930705,1768992546288,1249.67352935,0.00016245,2]
[402930706,1768992632152,-698.60816711,0.00016424,2]
[402930707,1768992632164,-132.07551411,0.00016424,2]
[402930708,1768992632173,-250.0,0.00016431,2]
[402930709,1768992632183,-300.0,0.00016439,2]
[402930710,1768992632192,-686.7152266,0.00016439,2]
[402930711,1768992632202,-513.2847734,0.00016439,2]
[402930712,1768992632211,-300.0,0.00016439,2]
[402930713,1768992632220,-137.41204336,0.00016439,2]
[402930714,1768992632231,-462.58795664,0.00016439,2]
[402930715,1768992632240,-92.28179496,0.00016439,2]
[402930716,1768992632252,-207.71820504,0.00016439,2]
[402930717,1768992632261,-755.1718679,0.0001644,2]
[402930718,1768992632272,-1326.4511873,0.0001644,2]
[402930719,1768992632284,-418.3769448,0.0001644,2]
[402930720,1768992632293,-300.0,0.0001644,2]
[402930721,1768992632303,-193.0,0.0001644,2]
[402930722,1768992632312,-1240.92,0.00016447,2]
[402930723,1768992632321,-500.0,0.00016465,2]
[402930724,1768992632330,-255.0,0.00016467,2]
[402930725,1768992632340,-2500.0,0.00016468,2]
[402930726,1768992632349,-1824.35276431,0.00016468,2]
[402930727,1768992632387,-675.64723569,0.00016468,2]
[402930728,1768992632396,-312.63479116,0.00016468,2]
[402930729,1768992632407,-1727.64143159,0.00016468,2]
[402930730,1768992632416,-300.0,0.00016468,2]
[402930731,1768992632425,-376.71520807,0.00016468,2]
[402930732,1768992632436,-312.04846329,0.00016468,2]
[402930733,1768992632445,-1240.92,0.00016489,2]
[402930734,1768992632454,-1911.40070551,0.00016491,2]
[402930735,1768992632464,-500.0,0.0001652,2]
[402930736,1768992632473,-1240.92,0.00016531,2]
[402930737,1768992632482,-475.45362323,0.00016539,2]
[402930738,1768992632493,-505.00637677,0.00016539,2]
[402930739,1768992632502,-500.0,0.00016539,2]
[402930740,1768992632511,-167.38440328,0.00016539,2]
[402930741,1768992632520,-500.0,0.00016539,2]
[402930742,1768992632529,-500.0,0.00016539,2]
[402930744,1768992632538,-85.508575,0.00016539,2]
[402930747,1768992632549,-414.491425,0.00016539,2]
[402930750,1768992632558,-161.52775631,0.00016539,2]
[402930752,1768992632568,-338.47224369,0.00016539,2]
[402930754,1768992632577,-437.0175132,0.00016539,2]
[402930757,1768992632586,-500.0,0.00016539,2]
[402930760,1768992632596,-500.0,0.00016539,2]
[402930762,1768992632605,-500.0,0.00016539,2]
[402930764,1768992632614,-500.0,0.00016539,2]
[402930766,1768992632623,-500.0,0.00016539,2]
[402930767,1768992632631,-500.0,0.00016539,2]
[402930768,1768992632640,-500.0,0.00016539,2]
[402930769,1768992632649,-500.0,0.00016539,2]
[402930770,1768992632658,-500.0,0.00016539,2]
[402930771,1768992632668,-500.0,0.00016539,2]
[402930772,1768992632683,-500.0,0.00016539,2]
[402930773,1768992632693,-437.44639035,0.00016539,2]
[402930774,1768992632702,-1532.144,0.0001654,2]
[402930775,1768992632711,-81.97064869,0.0001654,2]
[402930777,1768992638326,-50735.27425131,0.0001654,2]
[402930778,1768992638336,-1000000.0,0.0001654,2]
[402930779,1768992638345,-1240.92,0.00016573,2]
[402930780,1768992638356,-500.0,0.00016575,2]
[402930781,1768992638365,-1240.92,0.00016615,2]
[402930782,1768992638374,-500.0,0.00016629,2]
[402930783,1768992638384,-1186.12,0.00016639,2]
[402930784,1768992638394,-167.796,0.00016639,2]
[402930785,1768992638404,-9286.38050607,0.0001664,2]
[402930786,1768992638413,-2500.0,0.0001664,2]
[402930787,1768992638422,-209.74722447,0.00016641,2]
[402930789,1768992638433,-1240.92,0.00016657,2]
[402930790,1768992638442,-351.24272653,0.00016665,2]
[402930791,1768992638451,-500.0,0.00016665,2]
[402930792,1768992638460,-500.0,0.00016684,2]
[402930793,1768992638469,-1240.92,0.00016699,2]
[402930794,1768992638478,-481.20441342,0.00016739,2]
[402930795,1768992638487,-406.40115106,0.00016739,2]
[402930796,1768992638497,-348.24408228,0.00016739,2]
[402930797,1768992638506,-191.49199704,0.00016739,2]
[402930798,1768992638516,-500.0,0.00016739,2]
[402930799,1768992638525,-336.3635893,0.00016739,2]
[402930800,1768992638535,-500.0,0.00016739,2]
[402930802,1768992638544,-500.0,0.00016739,2]
[402930804,1768992638553,-500.0,0.00016739,2]
[402930805,1768992638562,-511.10431069,0.00016739,2]
[402930806,1768992638571,-1240.92,0.00016741,2]
[402930807,1768992638581,-1306.0,0.00016754,2]
[402930808,1768992638591,-1366.0,0.00016763,2]
[402930809,1768992638600,-500.0,0.00016773,2]
[402930810,1768992638609,-500.0,0.00016773,2]
[402930811,1768992638618,-500.0,0.00016773,2]
[402930812,1768992638627,-500.0,0.00016773,2]
[402930813,1768992638636,-500.0,0.00016773,2]
[402930814,1768992638645,-9286.38050599,0.0001678,2]
[402930815,1768992638655,-1240.92,0.00016783,2]
[402930816,1768992638674,-387.0,0.00016788,2]
[402930817,1768992638693,-787.0,0.00016797,2]
[402930818,1768992638712,-980.46,0.00016813,2]
[402930819,1768992638726,-209.74722441,0.00016821,2]
[402930820,1768992638737,-150.0106156,0.00016825,2]
[402930821,1768992638747,-1139.0,0.0001683,2]
[402930822,1768992638757,-548.39,0.00016831,2]
[402930823,1768992638766,-9286.38050599,0.0001692,2]
[402930824,1768992638776,-167.05,0.0001692,2]
[402930825,1768992638785,-5006.65,0.00016922,2]
[402930826,1768992638795,-9999.99,0.00016922,2]
[402930827,1768992638804,-196.77793317,0.00016939,2]
[402930828,1768992638813,-305.22366862,0.00016988,2]
[402930829,1768992638822,-5044.21670315,0.00016991,2]
[402930830,1768992638831,-8898.59617446,0.00016991,2]
[402930831,1768992638840,-13311.76768691,0.00016991,2]
[402930832,1768992638849,-18011.2878,0.00016991,2]
[402930833,1768992638858,-2452.0,0.00016998,2]
[402930834,1768992638867,-250.0,0.00017,2]
[402930835,1768992638877,-209.74722441,0.00017001,2]
[402930836,1768992638886,-151.0,0.00017047,2]
[402930837,1768992638895,-151.0,0.00017047,2]
[402930838,1768992638905,-151.0,0.00017053,2]
[402930839,1768992638915,-151.0,0.00017053,2]
[402930840,1768992638924,-9286.38050599,0.0001706,2]
[402930841,1768992638933,-151.0,0.00017072,2]
[402930842,1768992638943,-151.0,0.00017072,2]
[402930843,1768992638953,-151.0,0.00017072,2]
[402930844,1768992638962,-151.0,0.00017072,2]
[402930845,1768992638972,-151.0,0.00017072,2]
[402930846,1768992638981,-151.0,0.00017072,2]
[402930847,1768992638990,-151.0,0.00017072,2]
[402930848,1768992639000,-151.0,0.00017072,2]
[402930849,1768992639010,-151.0,0.00017072,2]
[402930850,1768992639019,-151.0,0.00017072,2]
[402930851,1768992639030,-151.0,0.00017072,2]
[402930852,1768992639040,-151.0,0.00017072,2]
[402930853,1768992639050,-151.0,0.00017072,2]
[402930854,1768992639062,-1446.0,0.00017074,2]
[402930855,1768992639073,-980.46,0.00017087,2]
[402930856,1768992639083,-1594.0,0.00017108,2]
[402930857,1768992639094,-2452.0,0.00017128,2]
[402930858,1768992639105,-1566.0,0.00017142,2]
[402930859,1768992639116,-187.91,0.0001717,2]
[402930860,1768992639126,-685.0,0.00017176,2]
[402930861,1768992639135,-209.74722441,0.00017181,2]
[402930862,1768992639145,-9286.38050599,0.000172,2]
[402930863,1768992639155,-1824.0,0.0001721,2]
[402930864,1768992639165,-2452.0,0.00017221,2]
[402930865,1768992639176,-2452.0,0.00017225,2]
[402930866,1768992639185,-154.95,0.00017237,2]
[402930867,1768992639194,-1263.0,0.00017244,2]
[402930868,1768992639205,-2452.0,0.00017314,2]
[402930869,1768992639213,-500.0,0.00017321,2]
[402930870,1768992639224,-856.6893145,0.00017321,2]
[402930871,1768992639233,-1000.0,0.00017321,2]
[402930872,1768992639242,-438.72320823,0.00017321,2]
[402930873,1768992639252,-9286.38050599,0.0001734,2]
[402930874,1768992639261,-209.74722441,0.0001736,2]
[402930875,1768992639270,-980.46,0.00017361,2]
[402930876,1768992639280,-500.0,0.00017373,2]
[402930877,1768992639288,-500.0,0.00017373,2]
[402930878,1768992639297,-500.0,0.00017373,2]
[402930879,1768992639306,-150.0,0.00017373,2]
[402930880,1768992639315,-1000.0,0.0001739,2]
[402930881,1768992639324,-25542.716,0.0001739,2]
[402930882,1768992639333,-917.0,0.00017418,2]
[402930883,1768992639342,-2452.0,0.00017436,2]
[402930884,1768992639351,-9286.38050599,0.0001748,2]
[402930885,1768992639360,-500.0,0.00017539,2]
[402930886,1768992639369,-383.87868293,0.00017539,2]
[402930887,1768992639378,-500.0,0.00017539,2]
[402930888,1768992639387,-500.0,0.00017539,2]
[402930889,1768992639397,-500.0,0.00017539,2]
[402930890,1768992639407,-500.0,0.00017539,2]
[402930891,1768992639416,-209.74722441,0.0001754,2]
[402930892,1768992639424,-500.0,0.00017605,2]
[402930893,1768992639433,-9286.38050599,0.0001762,2]
[402930894,1768992639443,-980.46,0.00017635,2]
[402930895,1768992639452,-7192.05936289,0.0001764,2]
[402930896,1768992639460,-5237.20489654,0.00017649,2]
[402930897,1768992639469,-209.74722441,0.0001772,2]
[402930898,1768992639478,-1000.0,0.00017731,2]
[402930899,1768992639487,-9286.38050599,0.0001776,2]
[402930900,1768992639496,-1000.0,0.0001779,2]
[402930901,1768992639505,-1000.0,0.000178,2]
[402930902,1768992639514,-1027.83837402,0.00017802,2]
[402930903,1768992639523,-5224.98447911,0.0001783,2]
[402930904,1768992639532,-150.0,0.00017846,2]
[402930905,1768992639542,-167.05,0.00017851,2]
[402930906,1768992639550,-1500.0,0.00017868,2]
[402930907,1768992639559,-1000.0,0.00017882,2]
[402930908,1768992639568,-5509.30096444,0.000179,3]
[402930909,1768992639577,-3159.0769,0.000179,2]
[402930910,1768992639586,-862.39790705,0.000179,2]
[402930911,1768992639603,-9286.38050599,0.000179,2]
[402930912,1768992639612,-1000.0,0.000179,2]
[402930913,1768992639621,-748.38189103,0.000179,2]
[402930914,1768992639629,-4474.6660817,0.000179,2]
[402930915,1768992639639,-209.74722441,0.000179,2]
[402930916,1768992639648,-13356.30675954,0.000179,2]
[402930917,1768992639657,-500.0,0.000179,2]
[402930918,1768992639667,-500.0,0.000179,2]
[402930919,1768992639676,-500.0,0.000179,2]
[402930920,1768992639690,-500.0,0.000179,2]
[402930921,1768992639700,-500.0,0.000179,2]
[402930922,1768992639709,-500.0,0.000179,2]
[402930923,1768992639718,-500.0,0.000179,2]
[402930924,1768992639728,-500.0,0.000179,2]
[402930925,1768992639737,-500.0,0.000179,2]
[402930926,1768992639746,-500.0,0.000179,2]
[402930927,1768992639757,-500.0,0.000179,2]
[402930928,1768992639766,-500.0,0.000179,2]
[402930929,1768992639775,-500.0,0.000179,2]
[402930930,1768992639785,-500.0,0.000179,2]
[402930931,1768992639794,-500.0,0.000179,2]
[402930932,1768992639803,-500.0,0.000179,2]
[402930933,1768992639812,-500.0,0.000179,2]
[402930934,1768992639821,-500.0,0.000179,2]
[402930935,1768992639830,-500.0,0.000179,2]
[402930936,1768992639840,-500.0,0.000179,2]
[402930937,1768992639850,-500.0,0.000179,2]
[402930938,1768992639859,-500.0,0.000179,2]
[402930939,1768992639869,-500.0,0.000179,2]
[402930940,1768992639879,-500.0,0.000179,2]
[402930941,1768992639888,-500.0,0.000179,2]
[402930942,1768992639897,-500.0,0.000179,2]
[402930943,1768992639906,-500.0,0.000179,2]
[402930944,1768992639916,-500.0,0.000179,2]
[402930945,1768992639925,-500.0,0.000179,2]
[402930946,1768992639934,-500.0,0.000179,2]
[402930947,1768992639943,-9374.0,0.000179,2]
[402930948,1768992639952,-980.46,0.00017909,2]
[402930949,1768992639961,-1000.0,0.00017921,2]
[402930950,1768992639970,-1000.0,0.00017921,2]
[402930951,1768992639979,-561.91385606,0.00017921,2]
[402930952,1768992639988,-242.41470896,0.00017921,2]
[402930953,1768992639997,-420.0,0.00017965,2]
[402930954,1768992640007,-500.0,0.00017969,2]
[402930955,1768992640017,-1000.0,0.0001797,2]
[402930956,1768992640027,-500.0,0.0001797,2]
[402930957,1768992640036,-1000.0,0.0001797,2]
[402930958,1768992640046,-500.0,0.0001797,2]
[402930959,1768992640055,-1000.0,0.0001797,2]
[402930960,1768992640065,-694.631145,0.0001797,2]
[402930961,1768992640074,-1321.57411122,0.0001797,2]
[402930962,1768992640083,-15055.0,0.00017973,2]
[402930963,1768992640093,-30553.0,0.00017973,2]
[402930964,1768992640102,-500.79549494,0.00017973,2]
[402930965,1768992640111,-500.12560695,0.00017973,2]
[402930966,1768992640121,-159.96427776,0.00017973,2]
[402930967,1768992640130,-500.0,0.00017973,2]
[402930968,1768992640139,-500.0,0.00017973,2]
[402930969,1768992640148,-500.0,0.00017973,2]
[402930970,1768992640157,-257.99612183,0.00017973,2]
[402930971,1768992640166,-500.0,0.00017973,2]
[402930972,1768992640175,-500.0,0.00017973,2]
[402930973,1768992640185,-500.0,0.00017973,2]
[402930974,1768992640194,-500.0,0.00017973,2]
[402930975,1768992640203,-500.15189466,0.00017973,2]
[402930976,1768992640213,-550.70733566,0.00017973,2]
[402930977,1768992640222,-500.0,0.00017973,2]
[402930978,1768992640231,-500.0,0.00017973,2]
[402930979,1768992640240,-586.66357325,0.00017973,2]
[402930980,1768992640250,-500.0,0.00017973,2]
[402930981,1768992640259,-150.0,0.00017973,2]
[402930982,1768992640269,-500.0,0.00017982,2]
[402930983,1768992640278,-1000.0,0.00017985,2]
[402930984,1768992640288,-305.22366862,0.0001799,2]
[402930985,1768992640297,-305.22366862,0.0001799,2]
[402930986,1768992640307,-151.0,0.00017997,2]
[402930987,1768992640316,-150.0,0.00017999,2]
[402930988,1768992640325,-150.0,0.00017999,2]
[402930989,1768992640334,-150.0,0.00017999,2]
[402930990,1768992640344,-150.0,0.00017999,2]
[402930991,1768992640354,-241.89100513,0.00017999,2]
[402930992,1768992640364,-300.0,0.00017999,2]
[402930993,1768992640373,-666.0,0.00017999,2]
[402930994,1768992640382,-155.0,0.00017999,2]
[402930995,1768992640391,-300.0,0.00017999,2]
[402930996,1768992640401,-300.0,0.00017999,2]
[402930997,1768992640410,-500.0,0.00017999,2]
[402930998,1768992640418,-500.0,0.00017999,2]
[402930999,1768992640427,-374.17567263,0.00017999,2]
[402931000,1768992640437,-300.0,0.00017999,2]
[402931001,1768992640446,-1008.3455,0.00017999,2]
[402931002,1768992640455,-300.0,0.00017999,2]
[402931003,1768992640464,-666.0,0.00017999,2]
[402931004,1768992640474,-666.0,0.00017999,2]
[402931005,1768992640483,-300.0,0.00017999,2]
[402931006,1768992640493,-424469.68193007,0.00018,2]
[402931007,1768992640502,-400.0,0.00018,2]
[402931008,1768992640510,-936401.91260076,0.00018,2]
[402931009,1768992640528,-2919.499,0.00018,2]
[402931010,1768992640712,-151.0,0.0001722,2]
[402931011,1768992640723,-7095516.3390124,0.00018,2]
[402931012,1768992640734,-5605.50649121,0.00018,2]
[402931013,1768992640745,-354.78492556,0.00018,2]
[402931014,1768992640757,-446.889,0.00018,2]
[402931021,1768992643694,-178.12,0.0001722,2]
[402931022,1768992643704,-10223.01521221,0.00018,2]
[402931023,1768992643715,-412.799227,0.00018,2]
[402931026,1768992646202,-1008.24074895,0.00018,2]
[402931027,1768992646214,-11014.50445949,0.00018,2]
[402931028,1768992646257,-453.53024,0.00018,2]
[402931029,1768992646268,-592.40075735,0.00018,2]
[402931030,1768992646312,-336497.08152954,0.00018,2]
[402931031,1768992646471,-565.91203727,0.00018,2]
[402931032,1768992646525,-14615.11715009,0.00018,2]
[402931038,1768992698070,150.0,0.00016392,2]
[402931039,1768992698314,500.0,0.00016392,2]
[402931040,1768992698595,150.0,0.00016392,2]
[402931041,1768992735763,150.0,0.00016392,2]
[402931042,1768992736099,500.0,0.00016392,2]
[402931043,1768992736126,500.0,0.00016392,2]
[402931044,1768992799746,183.52882142,0.00016347,2]
[402931045,1768992885362,177.78377636,0.00016338,2]
[402931046,1768992890645,166.66,0.00015332,2]
[402931047,1768992890870,166.66,0.00015655,2]
[402931048,1768992891071,166.66,0.00015978,2]
[402931049,1768992891276,166.66,0.00016301,2]
[402931050,1768993040692,7822.05740222,0.00016347,2]
[402931051,1768993040716,10000.01,0.00016347,2]
[402931052,1768993040740,915.13413444,0.00016347,2]
[402931053,1768993089543,186.80612174,0.00016347,2]
[402931054,1768993140060,1467.31,0.00015974,2]
[402931055,1768993147135,8345.89387826,0.00016347,2]
[402931056,1768993147157,940.48662781,0.00016347,2]
[402931058,1768993292370,1905.899,0.0001611,2]
[402931059,1768993292508,165.053,0.0001611,2]
[402931060,1768993379150,163.45535654,0.00016373,2]
[402931061,1768993385731,-241.89086637,0.00016417,2]
[402931062,1768993427034,9836.55464346,0.00016373,2]
[402931063,1768993427058,7026.92673957,0.00016373,2]
[402931064,1768993445836,-251.01652615,0.00016417,2]
[402931065,1768993505884,-300.0,0.00016417,2]
[402931066,1768993505911,-28.76131478,0.00016417,2]
[402931067,1768993510228,-282.26228161,0.00016417,2]
[402931068,1768993540238,822.09,0.00016012,2]
[402931069,1768993578051,549.63,0.00013346,2]
[402931070,1768993648545,500.0,0.00016308,2]
[402931071,1768993648909,500.0,0.00016363,2]
[402931072,1768993657668,8357.7424554,0.00016373,2]
[402931073,1768993664622,163.45535652,0.00016372,2]
[402931074,1768993669973,167.93,0.00015978,2]
[402931075,1768993760437,243.46151941,0.00016306,2]
[402931076,1768993760808,67.42066867,0.00016306,2]
[402931077,1768993760831,432.57933133,0.00016306,2]
[402931078,1768993760965,500.0,0.00016361,2]
[402931080,1768993795902,9067.43066867,0.00016339,2]
[402931081,1768993795930,10000.01,0.00016339,2]
[402931082,1768993795957,10000.01,0.00016339,2]
[402931083,1768993795982,10000.01,0.00016339,2]
[402931084,1768993796009,10000.01,0.00016339,2]
[402931085,1768993796037,10000.01,0.00016339,2]
[402931086,1768993796063,10000.01,0.00016339,2]
[402931087,1768993796089,10000.01,0.00016339,2]
[402931088,1768993796114,10000.01,0.00016339,2]
[402931089,1768993796144,10000.01,0.00016339,2]
[402931090,1768993796170,10000.01,0.00016339,2]
[402931091,1768993796196,10000.01,0.00016339,2]
[402931092,1768993796221,10000.01,0.00016339,2]
[402931093,1768993796248,10000.01,0.00016339,2]
[402931094,1768993796274,10000.01,0.00016339,2]
[402931095,1768993796302,850932.42933133,0.00016339,2]
[402931102,1768993831326,-500.0,0.00016416,2]
[402931104,1768993831337,-195.0,0.00016416,2]
[402931105,1768993831346,-329.20581098,0.00016417,2]
[402931106,1768993831356,-500.0,0.00016418,2]
[402931107,1768993831366,-150.0,0.00016418,2]
[402931108,1768993831375,-203.58,0.00016418,2]
[402931109,1768993831384,-150.0,0.00016418,2]
[402931110,1768993831398,-500.0,0.00016418,2]
[402931111,1768993831409,-1105.72310944,0.00016428,2]
[402931112,1768993831425,-94.27689056,0.00016428,2]
[402931113,1768993831435,-151.0,0.00016429,2]
[402931114,1768993831444,-151.0,0.00016429,2]
[402931115,1768993831454,-151.0,0.00016429,2]
[402931116,1768993831464,-292.93675772,0.00016429,2]
[402931117,1768993831473,-324.72944821,0.00016429,2]
[402931118,1768993831482,-300.0,0.00016437,2]
[402931119,1768993831493,-500.0,0.00016438,2]
[402931120,1768993831502,-500.0,0.00016438,2]
[402931121,1768993831512,-500.0,0.00016438,2]
[402931122,1768993831521,-188.33919875,0.00016438,2]
[402931123,1768993831531,-500.0,0.00016438,2]
[402931124,1768993831541,-500.0,0.00016438,2]
[402931125,1768993831550,-500.0,0.00016438,2]
[402931126,1768993831560,-500.0,0.00016438,2]
[402931127,1768993831570,-500.0,0.00016438,2]
[402931128,1768993831580,-500.0,0.00016438,2]
[402931129,1768993831593,-500.0,0.00016438,2]
[402931130,1768993831603,-500.0,0.00016438,2]
[402931132,1768993831613,-499.99999999,0.00016438,2]
[402931134,1768993831622,-500.0,0.00016438,2]
[402931136,1768993831631,-150.0,0.00016438,2]
[402931138,1768993831641,-500.0,0.00016438,2]
[402931140,1768993831651,-500.0,0.00016438,2]
[402931142,1768993831661,-500.0,0.00016438,2]
[402931144,1768993831671,-500.0,0.00016438,2]
[402931146,1768993831680,-500.0,0.00016438,2]
[402931148,1768993831690,-500.0,0.00016438,2]
[402931150,1768993831700,-500.0,0.00016438,2]
[402931152,1768993831709,-500.0,0.00016438,2]
[402931154,1768993831719,-500.0,0.00016438,2]
[402931157,1768993831730,-500.0,0.00016438,2]
[402931158,1768993831740,-223.42196767,0.00016438,2]
[402931160,1768993831750,-857.91,0.00016438,2]
[402931162,1768993831759,-481.20441342,0.00016472,2]
[402931164,1768993831769,-122.46674536,0.00016473,2]
[402931169,1768993831813,-27.53325464,0.00016473,2]
[402931171,1768993831823,-269.8196,0.00016473,2]
[402931173,1768993831832,-500.0,0.00016473,2]
[402931175,1768993831842,-150.0,0.00016528,2]
[402931177,1768993831851,-500.0,0.00016528,2]
[402931179,1768993831861,-7441.04714535,0.00016543,2]
[402931180,1768993831873,-326.71333278,0.00016543,2]
[402931181,1768993831910,-251.0,0.00016543,2]
[402931182,1768993831931,-333.05133563,0.00016543,2]
[402931185,1768993837398,-171.97,0.00016514,2]
[402931186,1768993837408,-5.93064163,0.00016543,2]
[402931187,1768993837418,-218.88125762,0.00016579,2]
[402931188,1768993837430,-281.11874238,0.00016579,2]
[402931189,1768993837439,-150.00039199,0.00016579,2]
[402931190,1768993837449,-178.39852138,0.00016582,2]
[402931191,1768993837458,-500.0,0.00016582,2]
[402931192,1768993837467,-0.55283695,0.00016624,2]
[402931193,1768993837478,-166.10716305,0.00016624,2]
[402931194,1768993837488,-336.98259654,0.00016626,2]
[402931195,1768993837498,-163.45535652,0.00016627,2]
[402931196,1768993837507,-500.0,0.00016637,2]
[402931197,1768993837730,-133.13328057,0.0001664,2]
[402931198,1768993837809,-866.86671943,0.0001664,2]
[402931199,1768993837819,-857.91,0.00016712,2]
[402931200,1768993837829,-8357.74245539,0.00016712,2]
[402931201,1768993837838,-500.0,0.00016739,2]
[402931202,1768993837847,-500.0,0.00016739,2]
[402931203,1768993837856,-534.13337632,0.00016739,2]
[402931204,1768993837865,-500.0,0.00016739,2]
[402931205,1768993837874,-500.0,0.00016739,2]
[402931206,1768993837883,-500.0,0.00016739,2]
[402931207,1768993837892,-500.0,0.00016739,2]
[402931208,1768993837901,-500.0,0.00016739,2]
[402931209,1768993837911,-500.0,0.00016739,2]
[402931210,1768993837920,-511.10431069,0.00016739,2]
[402931211,1768993837929,-676.0,0.00016772,2]
[402931212,1768993837938,-500.0,0.00016773,2]
[402931213,1768993837947,-500.0,0.00016773,2]
[402931214,1768993837956,-500.0,0.00016773,2]
[402931215,1768993837964,-500.0,0.00016773,2]